lending/lending_fUSD_20240411
["ID","MTS","AMOUNT","RATE_DAILY","PERIOD"]
[322135168,1712835067402,-513.46115448,0.00033424,7]
[322135169,1712835067412,-500.0,0.00033424,7]
[322135170,1712835067424,-500.0,0.00033424,7]
[322135171,1712835067433,-2151.21,0.00033424,7]
[322135172,1712835067442,-500.0,0.00033424,7]
[322135173,1712835067452,-500.0,0.00033424,7]
[322135174,1712835067462,-1002.44,0.00033424,7]
[322135175,1712835067471,-517.45734278,0.00033424,7]
[322135176,1712835067480,-500.0,0.00033424,5]
[322135177,1712835067490,-479.38891327,0.00033424,7]
[322135178,1712835067501,-2229.91,0.00033424,7]
[322135179,1712835067510,-500.0,0.00033424,7]
[322135180,1712835067519,-500.0,0.00033424,7]
[322135181,1712835067529,-500.0,0.00033424,7]
[322135182,1712835067539,-535.96189043,0.00033424,7]
[322135183,1712835067548,-514.93,0.00033424,7]
[322135184,1712835067557,-500.0,0.00033424,7]
[322135185,1712835067566,-500.0,0.00033424,7]
[322135186,1712835067576,-1323.6,0.00033424,7]
[322135187,1712835067585,-500.0,0.00033424,7]
[322135188,1712835067594,-500.0,0.00033424,7]
[322135189,1712835067603,-500.0,0.00033424,7]
[322135190,1712835067613,-500.0,0.00033424,7]
[322135191,1712835067622,-925.5,0.00033424,7]
[322135192,1712835067631,-3628.77,0.00033424,7]
[322135193,1712835067640,-500.0,0.00033424,7]
[322135194,1712835067649,-506.96,0.00033424,7]
[322135195,1712835067658,-500.0,0.00033424,7]
[322135196,1712835067668,-275.695189,0.00033424,7]
[322135197,1712835067677,-500.0,0.00033424,7]
[322135198,1712835067686,-275.695189,0.00033424,7]
[322135199,1712835067696,-500.0,0.00033424,7]
[322135200,1712835067706,-500.0,0.00033424,7]
[322135201,1712835067715,-500.0,0.00033424,7]
[322135202,1712835067725,-500.0,0.00033424,7]
[322135203,1712835067734,-500.0,0.00033424,7]
[322135204,1712835067744,-275.695189,0.00033424,7]
[322135205,1712835067753,-275.695189,0.00033424,7]
[322135206,1712835067763,-1108.62,0.00033424,7]
[322135207,1712835067772,-500.0,0.00033424,7]
[322135208,1712835067782,-572.14,0.00033424,7]
[322135209,1712835067792,-500.0,0.00033424,7]
[322135210,1712835067802,-500.0,0.00033424,7]
[322135211,1712835067811,-1141.88,0.00033424,7]
[322135212,1712835067821,-425.66177434,0.00033424,7]
[322135213,1712835067831,-30911.29,0.00033424,7]
[322135214,1712835067840,-539.73013707,0.00033424,7]
[322135215,1712835067851,-500.0,0.00033424,7]
[322135216,1712835067860,-500.0,0.00033424,7]
[322135217,1712835067870,-500.0,0.00033424,7]
[322135218,1712835067879,-500.0,0.00033424,7]
[322135219,1712835067889,-1496.51,0.00033424,7]
[322135220,1712835067898,-500.0,0.00033424,7]
[322135221,1712835067907,-500.0,0.00033424,7]
[322135222,1712835067916,-500.0,0.00033424,7]
[322135223,1712835067925,-867.47,0.00033424,7]
[322135224,1712835067934,-2198.76,0.00033424,7]
[322135225,1712835067944,-500.0,0.00033424,7]
[322135226,1712835067953,-500.0,0.00033424,7]
[322135227,1712835067962,-500.0,0.00033424,7]
[322135228,1712835067971,-500.0,0.00033424,2]
[322135229,1712835067980,-500.0,0.00033424,7]
[322135230,1712835067989,-2690.79,0.00033424,7]
[322135231,1712835067998,-500.0,0.00033424,7]
[322135232,1712835068007,-1131.4,0.00033424,7]
[322135233,1712835068017,-500.0,0.00033424,7]
[322135234,1712835068027,-1383.74,0.00033424,7]
[322135235,1712835068036,-500.0,0.00033424,7]
[322135236,1712835068046,-500.0,0.00033424,3]
[322135237,1712835068055,-500.0,0.00033424,7]
[322135238,1712835068064,-500.0,0.00033424,7]
[322135239,1712835068243,-1873.71,0.00033424,7]
[322135240,1712835068254,-500.0,0.00033424,7]
[322135241,1712835068263,-500.0,0.00033424,7]
[322135242,1712835068273,-1068.08,0.00033424,7]
[322135243,1712835068282,-500.0,0.00033424,7]
[322135244,1712835068291,-500.0,0.00033424,7]
[322135245,1712835068300,-2308.41,0.00033424,7]
[322135246,1712835068309,-500.0,0.00033424,7]
[322135247,1712835068319,-500.0,0.00033424,7]
[322135248,1712835068329,-500.0,0.00033424,7]
[322135249,1712835068341,-500.0,0.00033424,7]
[322135250,1712835068350,-532.36732324,0.00033424,7]
[322135251,1712835068359,-1026.48,0.00033424,7]
[322135252,1712835068368,-500.0,0.00033424,7]
[322135253,1712835068377,-500.0,0.00033424,7]
[322135254,1712835068386,-500.0,0.00033424,7]
[322135255,1712835068395,-500.0,0.00033424,7]
[322135256,1712835068404,-177.45142642,0.00033424,7]
[322135257,1712835068415,-500.0,0.00033424,7]
[322135258,1712835068425,-500.0,0.00033424,7]
[322135259,1712835068434,-500.0,0.00033424,7]
[322135260,1712835068443,-500.0,0.00033424,7]
[322135261,1712835068452,-500.0,0.00033424,2]
[322135262,1712835068461,-500.0,0.00033424,7]
[322135263,1712835068470,-500.0,0.00033424,7]
[322135264,1712835068479,-500.0,0.00033424,7]
[322135265,1712835068488,-500.0,0.00033424,7]
[322135266,1712835068498,-500.0,0.00033424,7]
[322135267,1712835068508,-500.0,0.00033424,7]
[322135268,1712835068517,-1065.86,0.00033424,7]
[322135269,1712835068527,-500.0,0.00033424,7]
[322135270,1712835068536,-500.0,0.00033424,7]
[322135271,1712835068545,-500.0,0.00033424,7]
[322135272,1712835068555,-500.0,0.00033424,7]
[322135273,1712835068564,-518.87162139,0.00033424,7]
[322135274,1712835068573,-556.63030753,0.00033424,7]
[322135275,1712835068582,-500.0,0.00033424,7]
[322135276,1712835068591,-500.0,0.00033424,7]
[322135277,1712835068601,-362.0033808,0.00033424,7]
[322135278,1712835068610,-1188.97,0.00033424,7]
[322135279,1712835068619,-500.0,0.00033424,7]
[322135280,1712835068629,-994.75,0.00033424,7]
[322135281,1712835068638,-725.3,0.00033424,7]
[322135282,1712835068648,-500.0,0.00033424,7]
[322135283,1712835068658,-500.0,0.00033424,7]
[322135284,1712835068667,-500.0,0.00033424,7]
[322135285,1712835068677,-294.16122258,0.00033424,7]
[322135286,1712835068686,-500.0,0.00033424,7]
[322135287,1712835068695,-500.0,0.00033424,7]
[322135288,1712835068705,-999.12,0.00033424,7]
[322135289,1712835068714,-500.0,0.00033424,7]
[322135290,1712835068723,-500.0,0.00033424,7]
[322135291,1712835068732,-6355.38,0.00033424,7]
[322135292,1712835068742,-500.0,0.00033424,7]
[322135293,1712835068752,-500.0,0.00033424,7]
[322135294,1712835068761,-500.0,0.00033424,7]
[322135295,1712835068770,-500.0,0.00033424,7]
[322135296,1712835068779,-500.0,0.00033424,7]
[322135297,1712835068788,-1879.05,0.00033424,7]
[322135298,1712835068798,-3431.09,0.00033424,7]
[322135299,1712835068807,-500.0,0.00033424,7]
[322135300,1712835068816,-2369.14,0.00033424,7]
[322135301,1712835068826,-500.0,0.00033424,7]
[322135302,1712835068835,-500.0,0.00033424,7]
[322135303,1712835068845,-250.10549782,0.00033424,7]
[322135304,1712835068854,-1234.36,0.00033424,7]
[322135305,1712835068864,-500.0,0.00033424,7]
[322135306,1712835068873,-500.0,0.00033424,7]
[322135307,1712835068882,-500.0,0.00033424,7]
[322135308,1712835068892,-151.0,0.00033424,7]
[322135309,1712835068902,-500.0,0.00033424,7]
[322135310,1712835068911,-151.0,0.00033424,7]
[322135311,1712835068920,-13530.84,0.00033424,7]
[322135312,1712835068930,-500.0,0.00033424,7]
[322135313,1712835068939,-500.0,0.00033424,7]
[322135314,1712835068948,-2593.88,0.00033424,7]
[322135315,1712835068957,-647.94432521,0.00033424,7]
[322135316,1712835068967,-500.0,0.00033424,7]
[322135317,1712835068976,-1032.86,0.00033424,7]
[322135318,1712835068985,-500.0,0.00033424,7]
[322135319,1712835068995,-1270.84,0.00033424,7]
[322135320,1712835069005,-500.0,0.00033424,7]
[322135321,1712835069014,-513.58982102,0.00033424,2]
[322135322,1712835069023,-500.0,0.00033424,2]
[322135323,1712835069032,-793.38,0.00033424,7]
[322135324,1712835069042,-500.0,0.00033424,7]
[322135325,1712835069051,-572.74864148,0.00033424,7]
[322135326,1712835069061,-500.0,0.00033424,7]
[322135327,1712835069070,-7032.67,0.00033424,7]
[322135328,1712835069080,-4687.64,0.00033424,7]
[322135329,1712835069089,-233.98599773,0.00033424,7]
[322135330,1712835069098,-500.0,0.00033424,7]
[322135331,1712835069108,-1881.1,0.00033424,7]
[322135332,1712835069117,-745.79,0.00033424,7]
[322135333,1712835069126,-500.0,0.00033424,7]
[322135334,1712835069135,-6368.65,0.00033424,7]
[322135335,1712835069145,-500.0,0.00033424,7]
[322135336,1712835069154,-500.0,0.00033424,7]
[322135337,1712835069163,-500.0,0.00033424,7]
[322135338,1712835069173,-1378.01,0.00033424,7]
[322135339,1712835069182,-1157.91,0.00033424,7]
[322135340,1712835069192,-1267.48,0.00033424,7]
[322135341,1712835069201,-500.0,0.00033424,7]
[322135342,1712835069211,-500.0,0.00033424,7]
[322135343,1712835069220,-500.0,0.00033424,7]
[322135344,1712835069229,-13198.16,0.00033424,7]
[322135345,1712835069239,-1557.9,0.00033424,7]
[322135346,1712835069250,-18939.74421352,0.00033424,7]
[322135347,1712835069865,-1041.4084361,0.00033424,7]
[322135348,1712835069878,-34038.98735038,0.00033424,7]
[322135349,1712835069888,-513.55937436,0.00033424,7]
[322135350,1712835069898,-1171.34,0.00033424,7]
[322135351,1712835069907,-1220.0,0.00033424,7]
[322135352,1712835069917,-500.0,0.00033424,7]
[322135353,1712835069926,-500.0,0.00033424,7]
[322135354,1712835069935,-500.0,0.00033424,7]
[322135355,1712835070143,-500.0,0.00033424,7]
[322135356,1712835070153,-500.0,0.00033424,7]
[322135357,1712835070162,-500.0,0.00033424,7]
[322135358,1712835070171,-1504.55,0.00033424,7]
[322135359,1712835070181,-500.0,0.00033424,7]
[322135360,1712835070190,-500.0,0.00033424,7]
[322135361,1712835070199,-500.0,0.00033424,7]
[322135362,1712835070208,-500.0,0.00033424,7]
[322135363,1712835070218,-3543.93,0.00033424,7]
[322135364,1712835070227,-10691.42,0.00033424,7]
[322135365,1712835070236,-1029.53,0.00033424,7]
[322135366,1712835070245,-500.0,0.00033424,7]
[322135367,1712835070254,-3470.07,0.00033424,7]
[322135368,1712835070263,-2106.52,0.00033424,7]
[322135369,1712835070273,-500.0,0.00033424,7]
[322135370,1712835070282,-544.9748949,0.00033424,7]
[322135371,1712835070292,-1722.88,0.00033424,7]
[322135372,1712835070301,-500.0,0.00033424,7]
[322135373,1712835070310,-500.0,0.00033424,7]
[322135374,1712835070320,-500.0,0.00033424,7]
[322135375,1712835070330,-500.0,0.00033424,7]
[322135376,1712835070345,-500.0,0.00033424,7]
[322135377,1712835070354,-500.0,0.00033424,7]
[322135378,1712835070363,-500.0,0.00033424,7]
[322135379,1712835070372,-154.86075935,0.00033424,7]
[322135380,1712835070383,-500.0,0.00033424,7]
[322135381,1712835070392,-500.0,0.00033424,7]
[322135382,1712835070401,-500.0,0.00033424,7]
[322135383,1712835070412,-500.0,0.00033424,7]
[322135384,1712835070421,-614.25,0.00033424,7]
[322135385,1712835070431,-4560.63,0.00033424,7]
[322135386,1712835070440,-6351.55,0.00033424,7]
[322135387,1712835070449,-1247.23,0.00033424,7]
[322135388,1712835070458,-926.64,0.00033424,7]
[322135389,1712835070467,-518.99968275,0.00033424,7]
[322135390,1712835070476,-893.85,0.00033424,7]
[322135391,1712835070485,-500.0,0.00033424,7]
[322135392,1712835070495,-699.25,0.00033424,7]
[322135393,1712835070504,-500.0,0.00033424,7]
[322135394,1712835070513,-500.0,0.00033424,7]
[322135395,1712835070523,-3511.87,0.00033424,7]
[322135396,1712835070533,-7262.35,0.00033424,7]
[322135397,1712835070542,-500.0,0.00033424,7]
[322135398,1712835070551,-500.0,0.00033424,7]
[322135399,1712835070561,-430.28012502,0.00033424,7]
[322135400,1712835070571,-346.25798878,0.00033424,7]
[322135401,1712835070580,-11686.68,0.00033424,7]
[322135402,1712835070589,-500.0,0.00033424,7]
[322135403,1712835070598,-500.0,0.00033424,7]
[322135404,1712835070607,-2332.5,0.00033424,7]
[322135405,1712835070616,-500.0,0.00033424,7]
[322135406,1712835070625,-1373.43,0.00033424,7]
[322135407,1712835070635,-500.0,0.00033424,7]
[322135408,1712835070644,-500.0,0.00033424,7]
[322135409,1712835070654,-11884.62,0.00033424,7]
[322135410,1712835070663,-500.0,0.00033424,7]
[322135411,1712835070672,-500.0,0.00033424,7]
[322135412,1712835070682,-500.0,0.00033424,7]
[322135413,1712835070691,-3824.64,0.00033424,7]
[322135414,1712835070699,-500.0,0.00033424,7]
[322135415,1712835070708,-500.0,0.00033424,7]
[322135416,1712835070717,-4328.03,0.00033424,7]
[322135417,1712835070726,-825.54,0.00033424,7]
[322135418,1712835070736,-500.0,0.00033424,7]
[322135419,1712835070746,-500.0,0.00033424,7]
[322135420,1712835070757,-1099.17,0.00033424,7]
[322135421,1712835070766,-672.53,0.00033424,7]
[322135422,1712835070775,-3190.77,0.00033424,7]
[322135423,1712835070785,-713.85,0.00033424,7]
[322135424,1712835070795,-500.0,0.00033424,7]
[322135425,1712835070805,-2007.36,0.00033424,7]
[322135426,1712835070815,-2124.75,0.00033424,7]
[322135427,1712835070825,-1998.95,0.00033424,7]
[322135428,1712835070834,-500.0,0.00033424,7]
[322135429,1712835070844,-500.0,0.00033424,7]
[322135430,1712835070854,-500.0,0.00033424,7]
[322135431,1712835070864,-500.0,0.00033424,7]
[322135432,1712835070873,-1350.83,0.00033424,7]
[322135433,1712835070883,-632.99,0.00033424,7]
[322135434,1712835070892,-1284.96,0.00033424,7]
[322135435,1712835070902,-500.0,0.00033424,7]
[322135436,1712835070912,-13584.55,0.00033424,7]
[322135437,1712835070922,-500.0,0.00033424,7]
[322135438,1712835070931,-500.0,0.00033424,7]
[322135439,1712835070940,-2366.01,0.00033424,7]
[322135440,1712835070950,-500.0,0.00033424,7]
[322135441,1712835070959,-500.0,0.00033424,7]
[322135442,1712835070968,-500.0,0.00033424,7]
[322135443,1712835070979,-522.59090513,0.00033424,7]
[322135444,1712835070990,-504.49,0.00033424,7]
[322135445,1712835071005,-2944.74,0.00033424,7]
[322135446,1712835071015,-2525.58,0.00033424,7]
[322135447,1712835071024,-232.5735007,0.00033424,7]
[322135448,1712835071032,-500.0,0.00033424,7]
[322135449,1712835071041,-7406.72,0.00033424,7]
[322135450,1712835071051,-500.0,0.00033424,7]
[322135451,1712835071060,-3228.21,0.00033424,7]
[322135452,1712835071070,-500.0,0.00033424,7]
[322135453,1712835071079,-500.0,0.00033424,7]
[322135454,1712835071088,-2113.48,0.00033424,7]
[322135455,1712835071097,-500.0,0.00033424,7]
[322135456,1712835071107,-1227.92,0.00033424,7]
[322135457,1712835071118,-696.94,0.00033424,7]
[322135458,1712835071129,-526.59770411,0.00033424,7]
[322135459,1712835071139,-500.0,0.00033424,7]
[322135460,1712835071148,-1870.39,0.00033424,7]
[322135461,1712835071160,-3043.15,0.00033424,7]
[322135462,1712835071169,-500.0,0.00033424,7]
[322135463,1712835071178,-500.0,0.00033424,7]
[322135464,1712835071188,-500.0,0.00033424,7]
[322135465,1712835071198,-5592.76,0.00033424,7]
[322135466,1712835071207,-1502.01,0.00033424,7]
[322135467,1712835071216,-500.0,0.00033424,7]
[322135468,1712835071225,-500.0,0.00033424,7]
[322135469,1712835071236,-20988.08,0.00033424,7]
[322135470,1712835071246,-549.94,0.00033424,7]
[322135471,1712835071255,-500.0,0.00033424,7]
[322135472,1712835071276,-1923.19,0.00033424,7]
[322135473,1712835071293,-500.0,0.00033424,7]
[322135474,1712835071314,-500.0,0.00033424,7]
[322135475,1712835071338,-6647.45,0.00033424,7]
[322135476,1712835071354,-916.47,0.00033424,7]
[322135477,1712835071373,-3905.55,0.00033424,7]
[322135478,1712835071393,-3557.67,0.00033424,7]
[322135479,1712835071413,-3437.88,0.00033424,7]
[322135480,1712835071432,-500.0,0.00033424,7]
[322135481,1712835071450,-1474.04,0.00033424,7]
[322135482,1712835071468,-500.0,0.00033424,7]
[322135483,1712835071489,-500.0,0.00033424,7]
[322135484,1712835071503,-500.0,0.00033424,7]
[322135485,1712835071518,-500.0,0.00033424,7]
[322135486,1712835071534,-1605.11,0.00033424,7]
[322135487,1712835071547,-1419.16,0.00033424,7]
[322135488,1712835071561,-500.0,0.00033424,7]
[322135489,1712835071582,-500.0,0.00033424,7]
[322135490,1712835071596,-500.0,0.00033424,7]
[322135491,1712835071611,-500.0,0.00033424,7]
[322135492,1712835071625,-1059.11,0.00033424,7]
[322135493,1712835071640,-500.0,0.00033424,7]
[322135494,1712835071656,-868.3,0.00033424,7]
[322135495,1712835071671,-500.0,0.00033424,7]
[322135496,1712835071686,-609.04,0.00033424,7]
[322135497,1712835071702,-2982.61,0.00033424,7]
[322135498,1712835071717,-500.0,0.00033424,7]
[322135499,1712835071732,-2809.3,0.00033424,7]
[322135500,1712835071748,-500.0,0.00033424,7]
[322135501,1712835071763,-500.0,0.00033424,7]
[322135502,1712835071779,-500.0,0.00033424,7]
[322135503,1712835071794,-500.0,0.00033424,7]
[322135504,1712835071809,-500.0,0.00033424,7]
[322135505,1712835071825,-3735.12,0.00033424,7]
[322135506,1712835071840,-55816.17,0.00033424,7]
[322135507,1712835071855,-500.0,0.00033424,7]
[322135508,1712835071871,-1640.26,0.00033424,7]
[322135509,1712835071886,-730.0,0.00033424,7]
[322135510,1712835071901,-500.0,0.00033424,7]
[322135511,1712835071916,-500.0,0.00033424,7]
[322135512,1712835071932,-500.0,0.00033424,7]
[322135513,1712835071948,-1523.76,0.00033424,7]
[322135514,1712835071964,-525.10770078,0.00033424,7]
[322135515,1712835071978,-3745.24,0.00033424,7]
[322135516,1712835071994,-1249.71,0.00033424,7]
[322135517,1712835072009,-500.0,0.00033424,7]
[322135518,1712835072026,-20930.15,0.00033424,7]
[322135519,1712835072042,-4244.1,0.00033424,7]
[322135520,1712835072058,-500.0,0.00033424,7]
[322135521,1712835072073,-506.18744817,0.00033424,7]
[322135522,1712835072089,-500.0,0.00033424,7]
[322135523,1712835072104,-500.0,0.00033424,7]
[322135524,1712835072119,-500.0,0.00033424,7]
[322135525,1712835072134,-500.0,0.00033424,7]
[322135526,1712835072149,-1086.74,0.00033424,7]
[322135527,1712835072165,-2078.36,0.00033424,7]
[322135528,1712835072180,-500.0,0.00033424,7]
[322135529,1712835072196,-500.0,0.00033424,7]
[322135530,1712835072210,-2432.97,0.00033424,7]
[322135531,1712835072225,-1829.89,0.00033424,7]
[322135532,1712835072239,-549.46816182,0.00033424,7]
[322135533,1712835072256,-503.78454134,0.00033424,7]
[322135534,1712835072272,-3086.96,0.00033424,7]
[322135535,1712835072286,-500.0,0.00033424,7]
[322135536,1712835072301,-500.0,0.00033424,7]
[322135537,1712835072317,-500.0,0.00033424,7]
[322135538,1712835072335,-391.84159224,0.00033424,7]
[322135539,1712835072353,-500.0,0.00033424,7]
[322135540,1712835072370,-2954.68,0.00033424,7]
[322135541,1712835072386,-1882.03,0.00033424,7]
[322135542,1712835072401,-500.0,0.00033424,7]
[322135543,1712835072418,-670.59,0.00033424,7]
[322135544,1712835072434,-221.68879524,0.00033424,7]
[322135545,1712835072449,-500.0,0.00033424,7]
[322135546,1712835072464,-3731.14,0.00033424,7]
[322135547,1712835072480,-1566.47,0.00033424,7]
[322135548,1712835072495,-500.0,0.00033424,7]
[322135549,1712835072510,-500.0,0.00033424,7]
[322135550,1712835072525,-500.0,0.00033424,7]
[322135551,1712835072541,-500.0,0.00033424,7]
[322135552,1712835072556,-500.0,0.00033424,7]
[322135553,1712835072571,-500.0,0.00033424,7]
[322135554,1712835072586,-564.65611762,0.00033424,7]
[322135555,1712835072603,-6661.49,0.00033424,7]
[322135556,1712835072619,-468.05479487,0.00033424,7]
[322135557,1712835072635,-500.0,0.00033424,7]
[322135558,1712835072651,-500.0,0.00033424,7]
[322135559,1712835072666,-630.86,0.00033424,7]
[322135560,1712835072681,-9484.52,0.00033424,7]
[322135561,1712835072695,-500.0,0.00033424,7]
[322135562,1712835072711,-381.18196732,0.00033424,7]
[322135563,1712835072728,-500.0,0.00033424,7]
[322135564,1712835072738,-500.0,0.00033424,7]
[322135565,1712835072749,-857.06,0.00033424,7]
[322135566,1712835072759,-565.26,0.00033424,7]
[322135567,1712835072769,-500.0,0.00033424,7]
[322135568,1712835072779,-500.0,0.00033424,7]
[322135569,1712835072790,-500.0,0.00033424,7]
[322135570,1712835072799,-2727.08,0.00033424,7]
[322135571,1712835072809,-3007.03,0.00033424,7]
[322135572,1712835072820,-3482.84,0.00033424,7]
[322135573,1712835072829,-500.0,0.00033424,7]
[322135574,1712835072840,-4735.27,0.00033424,7]
[322135575,1712835072849,-19804.73,0.00033424,7]
[322135576,1712835072859,-500.0,0.00033424,7]
[322135577,1712835072870,-500.0,0.00033424,7]
[322135578,1712835072880,-840.21,0.00033424,7]
[322135579,1712835072890,-500.0,0.00033424,7]
[322135580,1712835072901,-500.0,0.00033424,7]
[322135581,1712835072910,-500.0,0.00033424,7]
[322135582,1712835072920,-488.42028648,0.00033424,7]
[322135583,1712835072930,-3163.69,0.00033424,7]
[322135584,1712835072939,-542.85616937,0.00033424,7]
[322135585,1712835072949,-500.0,0.00033424,7]
[322135586,1712835072959,-500.0,0.00033424,7]
[322135587,1712835072968,-6111.33,0.00033424,7]
[322135588,1712835073334,-500.0,0.00033424,7]
[322135589,1712835073371,-500.0,0.00033424,7]
[322135590,1712835073395,-2684.18,0.00033424,7]
[322135591,1712835073407,-4736.13,0.00033424,7]
[322135592,1712835073417,-602.78309053,0.00033424,7]
[322135593,1712835073427,-784.91,0.00033424,7]
[322135594,1712835073436,-709.71,0.00033424,7]
[322135595,1712835073445,-500.0,0.00033424,7]
[322135596,1712835073454,-3960.63,0.00033424,7]
[322135597,1712835073463,-500.0,0.00033424,7]
[322135598,1712835073472,-500.0,0.00033424,7]
[322135599,1712835073481,-500.0,0.00033424,7]
[322135600,1712835073491,-1462.73,0.00033424,7]
[322135601,1712835073500,-500.0,0.00033424,7]
[322135602,1712835073509,-4450.97,0.00033424,7]
[322135603,1712835073519,-6946.56,0.00033424,7]
[322135604,1712835073527,-1864.01,0.00033424,7]
[322135605,1712835073537,-1900.65,0.00033424,7]
[322135606,1712835073546,-472.48460552,0.00033424,7]
[322135607,1712835073556,-2356.89,0.00033424,7]
[322135608,1712835073565,-5300.08,0.00033424,7]
[322135609,1712835073574,-3507.02,0.00033424,7]
[322135610,1712835073583,-500.0,0.00033424,7]
[322135611,1712835073592,-500.0,0.00033424,7]
[322135612,1712835073601,-500.0,0.00033424,7]
[322135613,1712835073610,-500.0,0.00033424,7]
[322135614,1712835073619,-500.0,0.00033424,7]
[322135615,1712835073628,-1398.3,0.00033424,7]
[322135616,1712835073638,-500.0,0.00033424,7]
[322135617,1712835073647,-500.0,0.00033424,7]
[322135618,1712835073656,-5049.28,0.00033424,7]
[322135619,1712835073665,-1330.68,0.00033424,7]
[322135620,1712835073674,-367.98415161,0.00033424,7]
[322135621,1712835073684,-500.0,0.00033424,7]
[322135622,1712835073693,-4891.33,0.00033424,7]
[322135623,1712835073702,-500.0,0.00033424,7]
[322135624,1712835073711,-500.0,0.00033424,7]
[322135625,1712835073720,-500.0,0.00033424,7]
[322135626,1712835073729,-8485.43,0.00033424,7]
[322135627,1712835073739,-7008.12,0.00033424,7]
[322135628,1712835073749,-986.62,0.00033424,7]
[322135629,1712835073758,-1550.86,0.00033424,7]
[322135630,1712835073767,-651.89,0.00033424,7]
[322135631,1712835073777,-5080.53,0.00033424,7]
[322135632,1712835073786,-500.0,0.00033424,7]
[322135633,1712835073795,-500.0,0.00033424,7]
[322135634,1712835073804,-500.0,0.00033424,7]
[322135635,1712835073813,-500.0,0.00033424,7]
[322135636,1712835073823,-500.0,0.00033424,7]
[322135637,1712835073832,-500.0,0.00033424,7]
[322135638,1712835073841,-1225.69,0.00033424,7]
[322135639,1712835073849,-4843.85,0.00033424,7]
[322135640,1712835073858,-3839.06,0.00033424,7]
[322135641,1712835073867,-1073.08,0.00033424,7]
[322135642,1712835073876,-500.0,0.00033424,7]
[322135643,1712835073884,-6775.55,0.00033424,7]
[322135644,1712835073893,-500.0,0.00033424,7]
[322135645,1712835073902,-4047.41,0.00033424,7]
[322135646,1712835073910,-500.0,0.00033424,7]
[322135647,1712835073919,-500.0,0.00033424,7]
[322135648,1712835073928,-500.0,0.00033424,7]
[322135649,1712835073937,-500.0,0.00033424,7]
[322135650,1712835073946,-3477.46,0.00033424,7]
[322135651,1712835073955,-556.37,0.00033424,7]
[322135652,1712835073965,-500.0,0.00033424,7]
[322135653,1712835073974,-500.0,0.00033424,7]
[322135654,1712835073983,-8708.2,0.00033424,7]
[322135655,1712835073992,-500.0,0.00033424,7]
[322135656,1712835074002,-516.77403419,0.00033424,7]
[322135657,1712835074011,-3289.47,0.00033424,7]
[322135658,1712835074020,-500.0,0.00033424,7]
[322135659,1712835074029,-500.0,0.00033424,7]
[322135660,1712835074039,-500.0,0.00033424,7]
[322135661,1712835074049,-500.0,0.00033424,7]
[322135662,1712835074058,-500.0,0.00033424,7]
[322135663,1712835074067,-651.05,0.00033424,7]
[322135664,1712835074076,-500.0,0.00033424,7]
[322135665,1712835074085,-3274.71,0.00033424,7]
[322135666,1712835074094,-500.0,0.00033424,7]
[322135667,1712835074104,-5635.83,0.00033424,7]